fUST/lending_fUST_20251029
["ID","MTS","AMOUNT","RATE_DAILY","PERIOD"]
[392565019,1761673838892,-500.0,0.00018317,2]
[392565020,1761673838902,-1414.0,0.0001834,2]
[392565021,1761673838911,-168.0,0.00018366,2]
[392565022,1761673838922,-500.0,0.00018372,2]
[392565023,1761673838932,-520.07678697,0.00018426,2]
[392565024,1761673838941,-500.0,0.00018448,2]
[392565025,1761673838952,-1000.0,0.00018457,5]
[392565026,1761673838961,-313.0,0.00018486,2]
[392565027,1761673838971,-10000.0,0.000185,2]
[392565028,1761673838981,-1401.441732,0.000185,2]
[392565029,1761673838990,-168.0,0.00018501,2]
[392565030,1761673839001,-350.24964439,0.00018533,2]
[392565031,1761673839010,-500.0,0.0001855,2]
[392565032,1761673839020,-4297.80017545,0.00018609,2]
[392565033,1761673839029,-165.475084,0.0001863,2]
[392565034,1761673839039,-665.0,0.0001864,2]
[392565035,1761673839049,-375.0,0.00018643,2]
[392565036,1761673839059,-500.73713654,0.00018669,2]
[392565037,1761673839068,-1414.0,0.0001869,2]
[392565038,1761673839078,-213.01504791,0.00018692,2]
[392565039,1761673839088,-1451.30558845,0.00018696,2]
[392565040,1761673839097,-7030.37655305,0.00018697,2]
[392565041,1761673839107,-1414.0,0.00018697,2]
[392565042,1761673839116,-500.0,0.00018722,2]
[392565043,1761673839125,-482.14,0.0001874,3]
[392565044,1761673839135,-241.07,0.0001874,3]
[392565045,1761673839144,-5759.0,0.0001875,2]
[392565046,1761673839153,-723.21,0.00018771,3]
[392565047,1761673839162,-10000.0,0.000188,2]
[392565048,1761673839172,-350.24964439,0.00018805,2]
[392565049,1761673839182,-500.0,0.00018824,2]
[392565050,1761673839192,-481.0,0.00018861,2]
[392565051,1761673839201,-980.4861334,0.00018871,2]
[392565052,1761673839211,-5000.0,0.0001895,2]
[392565053,1761673839220,-14420.6529432,0.0001899,2]
[392565054,1761673839230,-199.479752,0.0001899,2]
[392565055,1761673839240,-151.0,0.0001899,2]
[392565056,1761673839250,-151.0,0.0001899,2]
[392565057,1761673839259,-500.0,0.00018996,2]
[392565058,1761673839268,-9511.58885361,0.00019,2]
[392565059,1761673839281,-284.45087056,0.00019,2]
[392565060,1761673839292,-488.131604,0.00019,2]
[392565111,1761673840327,-3e-08,0.00019,2]
[392565211,1761674069885,-168.0,0.00017182,2]
[392565212,1761674069909,-36.63641198,0.00017248,2]
[392565213,1761674083447,-131.36358802,0.00017248,2]
[392565214,1761674310132,250.0,0.00016659,2]
[392565220,1761674449975,1000.0,0.00016895,2]
[392565221,1761674455110,-168.0,0.00017327,2]
[392565222,1761674455131,-107.99516966,0.0001739,2]
[392565223,1761674456436,200.0,0.00017327,2]
[392565224,1761674457855,-164.01312561,0.0001739,2]
[392565225,1761674667535,184.93293413,0.00016814,2]
[392565226,1761674705272,158.489526,0.00016894,2]
[392565243,1761675030139,6772.1679735,0.00017021,2]
[392565277,1761675032084,-288.02485699,0.00017485,2]
[392565278,1761675032095,-168.0,0.00017579,2]
[392565279,1761675032104,-1000.0,0.00017808,2]
[392565280,1761675032114,-168.0,0.00017841,2]
[392565281,1761675032124,-237.89764558,0.00017845,2]
[392565282,1761675032133,-168.0,0.00017847,2]
[392565283,1761675032144,-81.08136593,0.00017847,2]
[392565369,1761675037978,-218.91863407,0.00017847,2]
[392565370,1761675037988,-302.82416273,0.00017848,2]
[392565371,1761675038030,-908.56,0.00017848,2]
[392565377,1761675043317,-3176.61583727,0.00017848,2]
[392565378,1761675043328,-2167.0,0.00017848,2]
[392565379,1761675043340,-984.0,0.00017848,2]
[392565380,1761675043351,-633.0,0.00017848,2]
[392565381,1761675043363,-412.0,0.00017848,2]
[392565382,1761675043375,-168.0,0.00017894,2]
[392565383,1761675043387,-168.0,0.00017919,2]
[392565384,1761675043399,-424.74,0.00017919,3]
[392565386,1761675043410,-212.37,0.00017919,3]
[392565388,1761675043420,-637.11,0.00017919,3]
[392565390,1761675043432,-392.402,0.00017928,2]
[392565391,1761675043442,-440.00206969,0.00017928,2]
[392565392,1761675043453,-306.08748889,0.00017928,2]
[392565393,1761675043464,-500.0,0.00017928,2]
[392565394,1761675043474,-162.39238305,0.00017928,2]
[392565395,1761675043484,-500.0,0.00017929,2]
[392565396,1761675043495,-24525.80331625,0.00017929,2]
[392565470,1761675244610,161.43634374,0.00017201,2]
[392565471,1761675246637,369.77,0.000174,2]
[392565474,1761675283782,883.07386,0.00013699,2]
[392565475,1761675504321,322.49455396,0.00030137,120]
[392565476,1761675587637,909.92448476,0.00017391,5]
[392565477,1761675590579,1813.56182276,0.00016894,2]
[392565478,1761675590599,1176.51650754,0.00016894,2]
[392565489,1761675620439,500.0,0.00030137,120]
[392565498,1761676114388,10000.01,0.00017,2]
[392565499,1761676118701,589.37582734,0.000149,2]
[392565500,1761676118837,1000.0,0.0001,2]
[392565502,1761676126481,16376.36242676,0.00033607,120]
[392565549,1761676232383,-313.922,0.00017728,2]
[392565550,1761676232392,-699.938,0.00017728,2]
[392565790,1761676238218,-472.88838243,0.00017728,2]
[392565791,1761676238228,-300.0,0.00017728,2]
[392565792,1761676238238,-295.71148689,0.00017728,2]
[392565793,1761676238248,-190.31811648,0.00017729,2]
[392565794,1761676238257,-8005.44557098,0.00017729,2]
[392565795,1761676238269,-489.51071645,0.00017729,2]
[392565796,1761676238281,-6092.44917852,0.00017729,2]
[392565797,1761676238291,-1245.06835416,0.00017769,2]
[392565798,1761676238301,-1000.0,0.00017808,2]
[392565799,1761676238311,-212.37,0.00017819,3]
[392565800,1761676238320,-637.11,0.00017819,3]
[392565801,1761676238330,-251.93979888,0.00017828,2]
[392565802,1761676238340,-273.95770247,0.00017828,2]
[392565803,1761676238354,-191.77039172,0.00017828,2]
[392565804,1761676238364,-5255.97070528,0.00017829,2]
[392565810,1761676240500,-4527.83471279,0.00017828,2]
[392565842,1761676243339,-2006.03781865,0.00017828,2]
[392565912,1761676246300,-4973.75054213,0.00017828,2]
[392565913,1761676246309,-82462.66129823,0.00017829,2]
[392565915,1761676294045,5000.0,0.00017515,2]
[392565922,1761676656532,5000.01,0.00017515,2]
[392565923,1761676656556,81.99,0.00017515,2]
[392565924,1761676812893,286.858539,0.00016724,2]
[392565925,1761677122662,159.97751647,0.00017336,7]
[392565926,1761677135300,1738.0,0.00017515,2]
[392565936,1761677316764,459.0,0.0003,120]
[392565939,1761677358988,348.99953714,0.00016643,2]
[392565940,1761677360985,1394.60215043,0.00016643,2]
[392565941,1761677375354,1152.0,0.00033608,120]
[392565958,1761677432514,-256.04000004,0.00017544,2]
[392566015,1761677438359,-33.75725711,0.00017544,2]
[392566016,1761677438369,-250.95070014,0.00017568,2]
[392566017,1761677438379,-1002.79899778,0.00017568,2]
[392566018,1761677438389,-300.0,0.00017692,2]
[392566019,1761677438399,-1026.2230846,0.00017693,2]
[392566020,1761677438410,-181.22845061,0.000177,2]
[392566022,1761677438420,-152.2544932,0.00017708,2]
[392566024,1761677438430,-152.25449316,0.00017713,2]
[392566025,1761677438440,-152.25449316,0.00017718,2]
[392566027,1761677438450,-424.74,0.00017719,3]
[392566029,1761677438459,-152.25449316,0.00017723,2]
[392566031,1761677438469,-251.138,0.00017728,2]
[392566032,1761677438479,-152.25449316,0.00017728,2]
[392566035,1761677438490,-500.0,0.00017728,2]
[392566036,1761677438499,-500.0,0.00017728,2]
[392566038,1761677438508,-500.0,0.00017728,2]
[392566040,1761677438517,-500.0,0.00017728,2]
[392566041,1761677438526,-500.0,0.00017728,2]
[392566043,1761677438535,-186.95732376,0.00017728,2]
[392566055,1761677438853,-313.04267624,0.00017728,2]
[392566056,1761677438862,-500.0,0.00017728,2]
[392566057,1761677438874,-500.0,0.00017728,2]
[392566058,1761677438884,-500.0,0.00017728,2]
[392566059,1761677438894,-500.0,0.00017728,2]
[392566060,1761677438904,-500.0,0.00017728,2]
[392566061,1761677438918,-500.0,0.00017728,2]
[392566062,1761677438927,-500.0,0.00017728,2]
[392566063,1761677438937,-587.71896429,0.00017728,2]
[392566064,1761677438947,-41360.18594088,0.00017729,2]
[392566065,1761677438963,-4586.86548193,0.00017729,2]
[392566087,1761677440510,-1245.06835416,0.00017544,2]
[392566088,1761677440520,-37186.10474223,0.00017729,2]
[392566097,1761677443701,-32180.86238935,0.00017729,2]
[392566101,1761677444579,-987.14006591,0.00017729,2]
[392566131,1761677446806,-12480.61707463,0.00017729,2]
[392566132,1761677459126,5000.0,0.00017515,2]
[392566133,1761677466991,151.0,0.00017,2]
[392566136,1761677481892,998.55977343,0.00017515,2]
[392566137,1761677481921,4001.44022657,0.00017515,2]
[392566138,1761677770718,158.489526,0.00016728,2]
[392566140,1761678070511,1245.06835416,0.00017491,2]
[392566143,1761678274094,838.920167,0.00013699,2]
[392566154,1761678581115,1245.06835416,0.00017396,2]
[392566155,1761678632233,800.0,0.00017356,2]
[392566171,1761678632709,-284.00131201,0.00017605,2]
[392566173,1761678632720,-300.0,0.00017616,2]
[392566175,1761678632731,-300.0,0.00017616,2]
[392566177,1761678632743,-361.10145792,0.00017616,2]
[392566179,1761678632757,-838.89854208,0.00017616,2]
[392566181,1761678632768,-646.98458742,0.00017617,2]
[392566184,1761678632782,-553.01541258,0.00017617,2]
[392566186,1761678632794,-151.23458757,0.00017618,2]
[392566188,1761678632808,-29.46000239,0.00017618,2]
[392566191,1761678632819,-1039.22153018,0.00017618,2]
[392566193,1761678632833,-1318.24730559,0.00017618,2]
[392566196,1761678632851,-7717.045867,0.00017618,2]
[392566198,1761678632862,-897.94519899,0.00017618,2]
[392566200,1761678632873,-208.30918108,0.00017628,2]
[392566202,1761678632883,-182.79324184,0.00017628,2]
[392566205,1761678632894,-500.0,0.00017628,2]
[392566208,1761678632905,-500.0,0.00017628,2]
[392566211,1761678632915,-335.71982481,0.00017628,2]
[392566214,1761678632926,-371.17763406,0.00017628,2]
[392566217,1761678632937,-500.0,0.00017628,2]
[392566219,1761678632947,-479.70192605,0.00017628,2]
[392566221,1761678632957,-500.0,0.00017628,2]
[392566224,1761678632969,-500.0,0.00017628,2]
[392566226,1761678632979,-500.0,0.00017628,2]
[392566228,1761678632990,-500.0,0.00017628,2]
[392566230,1761678633002,-500.0,0.00017628,2]
[392566232,1761678633013,-384.40520886,0.00017628,2]
[392566234,1761678633025,-500.0,0.00017628,2]
[392566237,1761678633036,-500.0,0.00017628,2]
[392566239,1761678633048,-650.0,0.00017628,2]
[392566241,1761678633060,-500.0,0.00017628,2]
[392566243,1761678633071,-500.0,0.00017628,2]
[392566245,1761678633083,-500.0,0.00017628,2]
[392566247,1761678633095,-500.0,0.00017628,2]
[392566250,1761678633108,-500.0,0.00017628,2]
[392566252,1761678633119,-500.0,0.00017628,2]
[392566254,1761678633129,-500.0,0.00017628,2]
[392566256,1761678633140,-217.89372802,0.00017628,2]
[392566258,1761678633151,-126424.40325535,0.00017629,2]
[392566260,1761678633165,-5835.78732189,0.00017629,2]
[392566262,1761678633178,-3827.25718664,0.00017629,2]
[392566311,1761678638570,-1815.33760659,0.00017629,2]
[392566312,1761678638586,-18286.69776887,0.00017629,2]
[392566313,1761678638786,-822.42279838,0.00017629,2]
[392566314,1761678638798,-471.54538709,0.00017629,2]
[392566315,1761678638810,-1049.11911392,0.00017629,2]
[392566321,1761678640725,-4551.15217874,0.00017629,2]
[392566326,1761678712520,567.7326162,0.00016676,2]
[392566331,1761678768462,430.79556718,0.00017493,2]
[392566334,1761678962520,168.90696768,0.00017195,2]
[392566335,1761679082082,157.14521272,0.00017477,2]
[392566336,1761679088592,386.44300833,0.00017395,2]
[392566337,1761679088614,858.62534583,0.00017395,2]
[392566338,1761679178262,215.05016416,0.00016843,2]
[392566345,1761679489728,920.36134984,0.00017438,2]
[392566356,1761679568645,8005.97314017,0.00017448,2]
[392566357,1761679568678,737.47414684,0.00017448,2]
[392566361,1761679619754,1245.06835416,0.00017493,2]
[392566364,1761679641120,6181.94027495,0.0001865,15]
[392566379,1761679714870,1446.79635922,0.0001737,2]
[392566383,1761679732038,2703.07486992,0.000175,2]
[392566384,1761679756267,2124.0,0.000181,10]
[392566385,1761679775177,805.31618111,0.00017428,2]
[392566387,1761679828895,3062.28008875,0.00017495,2]
[392566388,1761679828921,2766.68476925,0.00017495,2]
[392566468,1761679835986,-168.0,0.00017526,2]
[392566470,1761679835996,-300.0,0.00017526,2]
[392566471,1761679836007,-289.85665009,0.00017528,2]
[392566472,1761679836016,-1000.10001,0.00017528,2]
[392566473,1761679836026,-313.70719653,0.00017528,2]
[392566474,1761679836035,-122.05896588,0.00017528,2]
[392566475,1761679836047,-226.17098601,0.00017528,2]
[392566476,1761679836056,-611.48457101,0.00017528,2]
[392566477,1761679836066,-500.0,0.00017528,2]
[392566478,1761679836075,-453.47098432,0.00017528,2]
[392566479,1761679836085,-19.42257038,0.00017528,2]
[392566480,1761679836097,-480.57742962,0.00017528,2]
[392566481,1761679836107,-500.0,0.00017528,2]
[392566482,1761679836116,-500.0,0.00017528,2]
[392566483,1761679836126,-500.0,0.00017528,2]
[392566484,1761679836143,-500.0,0.00017528,2]
[392566485,1761679836153,-500.0,0.00017528,2]
[392566486,1761679836162,-500.0,0.00017528,2]
[392566487,1761679836171,-422.08132893,0.00017528,2]
[392566488,1761679836181,-500.0,0.00017528,2]
[392566489,1761679836190,-500.0,0.00017528,2]
[392566490,1761679836199,-500.0,0.00017528,2]
[392566491,1761679836215,-500.0,0.00017528,2]
[392566492,1761679836225,-500.0,0.00017528,2]
[392566493,1761679836235,-500.0,0.00017528,2]
[392566494,1761679836245,-500.0,0.00017528,2]
[392566495,1761679836255,-500.0,0.00017528,2]
[392566496,1761679836264,-500.0,0.00017528,2]
[392566497,1761679836274,-500.0,0.00017528,2]
[392566498,1761679836283,-500.0,0.00017528,2]
[392566499,1761679836293,-500.0,0.00017528,2]
[392566500,1761679836302,-500.0,0.00017528,2]
[392566501,1761679836312,-500.0,0.00017528,2]
[392566502,1761679836322,-500.0,0.00017528,2]
[392566503,1761679836331,-500.0,0.00017528,2]
[392566504,1761679836340,-500.0,0.00017528,2]
[392566505,1761679836349,-357.64142331,0.00017528,2]
[392566506,1761679836359,-590.78050012,0.00017528,2]
[392566507,1761679836368,-78847.59410533,0.00017529,2]
[392566508,1761679836379,-198599.99841271,0.00017529,2]
[392566514,1761679837762,-10999.81413593,0.00017529,2]
[392566515,1761679837773,-318.74511317,0.00017529,2]
[392566516,1761679837815,-1232.55454948,0.00017529,2]
[392566517,1761679837871,-307.8364998,0.00017529,2]
[392566685,1761679845997,-466.85390329,0.00017529,2]
[392566686,1761679846053,-79226.60328029,0.00017529,2]
[392566687,1761679846063,-213.96859442,0.00017595,2]
[392566688,1761679846075,-343.64601407,0.000176,2]
[392566689,1761679846085,-500.0,0.00017628,2]
[392566690,1761679846094,-500.0,0.00017628,2]
[392566691,1761679846103,-48539.07940172,0.00017648,2]
[392566692,1761679846113,-6493.1912952,0.00017648,2]
[392566693,1761679846122,-10939.7445277,0.00017648,2]
[392566694,1761679846132,-181.8259136,0.00017648,2]
[392566695,1761679846142,-151.0,0.00017648,2]
[392566696,1761679846152,-6554.6279585,0.00017648,2]
[392566697,1761679846162,-151.0,0.00017648,2]
[392566698,1761679846171,-337.1265234,0.00017648,2]
[392566699,1761679846181,-151.0,0.00017648,2]
[392566701,1761679846191,-151.0,0.00017648,2]
[392566702,1761679846200,-151.0,0.00017712,2]
[392566703,1761679846209,-151.0,0.00017712,2]
[392566704,1761679846223,-229.726034,0.00017712,2]
[392566705,1761679846233,-200.91,0.00017718,2]
[392566706,1761679846244,-155.0,0.00017727,2]
[392566707,1761679846253,-151.0,0.00017727,2]
[392566708,1761679846263,-500.0,0.00017728,2]
[392566709,1761679846274,-500.0,0.00017728,2]
[392566710,1761679846284,-281.17,0.00017728,2]
[392566711,1761679846294,-151.0,0.00017728,2]
[392566712,1761679846304,-151.0,0.00017782,2]
[392566713,1761679846313,-1000.0,0.00017808,2]
[392566714,1761679846323,-412.0,0.00017812,2]
[392566715,1761679846333,-984.0,0.00017812,2]
[392566716,1761679846343,-633.0,0.00017812,2]
[392566717,1761679846353,-4388.0,0.00017826,2]
[392566718,1761679846363,-151.0,0.00017837,2]
[392566719,1761679846372,-168.0,0.00017854,2]
[392566720,1761679846382,-190.73882,0.0001789,2]
[392566721,1761679846391,-151.0,0.00017891,2]
[392566722,1761679846400,-258.98,0.000179,2]
[392566723,1761679846410,-168.0,0.00017922,2]
[392566724,1761679846419,-151.0,0.00017946,2]
[392566725,1761679846429,-197.58276153,0.00018001,2]
[392566726,1761679846439,-1190.72488394,0.00018029,2]
[392566727,1761679846450,-168.0,0.00018059,2]
[392566728,1761679846465,-151.0,0.00018082,2]
[392566729,1761679846474,-151.0,0.00018082,2]
[392566730,1761679846484,-1000.0,0.00018082,3]
[392566731,1761679846493,-168.0,0.00018196,2]
[392566732,1761679846506,-151.0,0.000182,2]
[392566733,1761679846516,-300.0,0.00018287,2]
[392566734,1761679846526,-300.0,0.00018287,2]
[392566735,1761679846536,-300.0,0.00018287,2]
[392566736,1761679846546,-300.0,0.00018287,2]
[392566737,1761679846556,-300.0,0.00018287,2]
[392566738,1761679846565,-300.0,0.00018287,2]
[392566739,1761679846574,-300.0,0.00018287,2]
[392566740,1761679846584,-300.0,0.00018287,2]
[392566741,1761679846593,-300.0,0.00018287,2]
[392566742,1761679846602,-300.0,0.00018287,2]
[392566743,1761679846612,-300.0,0.00018287,2]
[392566744,1761679846621,-300.0,0.00018287,2]
[392566745,1761679846631,-300.0,0.00018287,2]
[392566746,1761679846641,-300.0,0.00018287,2]
[392566747,1761679846651,-300.0,0.00018287,2]
[392566748,1761679846660,-600.0,0.00018287,2]
[392566749,1761679846670,-151.0,0.00018287,2]
[392566750,1761679846681,-151.0,0.00018287,2]
[392566751,1761679846691,-151.0,0.00018287,2]
[392566752,1761679846702,-153.747276,0.00018287,2]
[392566753,1761679846712,-340.0,0.00018313,2]
[392566754,1761679846723,-1000.0,0.00018356,4]
[392566755,1761679846733,-233.8,0.00018384,2]
[392566756,1761679846743,-800.0,0.00018452,2]
[392566757,1761679846752,-435.0,0.000185,2]
[392566758,1761679846763,-168.0,0.00018514,2]
[392566759,1761679846774,-1000.0,0.0001863,5]
[392566760,1761679846784,-165.475084,0.0001863,2]
[392566761,1761679846794,-168.0,0.00018692,2]
[392566762,1761679846804,-805.31618104,0.0001872,2]
[392566763,1761679846814,-233.8,0.00018755,2]
[392566764,1761679846823,-2035.71626236,0.00018779,2]
[392566765,1761679846833,-168.0,0.00018831,2]
[392566766,1761679846842,-168.0,0.00018838,2]
[392566767,1761679846851,-500.0,0.00018844,2]
[392566768,1761679846861,-500.0,0.00018844,2]
[392566769,1761679846872,-500.0,0.00018844,2]
[392566770,1761679846882,-501.35537769,0.00018844,2]
[392566771,1761679846892,-500.0,0.00018844,2]
[392566772,1761679846901,-500.0,0.00018844,2]
[392566773,1761679846911,-500.0,0.00018844,2]
[392566774,1761679846921,-500.0,0.00018844,2]
[392566775,1761679846931,-151.0,0.00018844,2]
[392566776,1761679846945,-151.0,0.00018844,2]
[392566777,1761679846954,-303.05757821,0.000189,2]
[392566778,1761679846963,-151.0,0.00018904,2]
[392566779,1761679846973,-151.0,0.00018904,2]
[392566780,1761679846982,-151.0,0.00018904,2]
[392566781,1761679846992,-1000.0,0.00018904,6]
[392566782,1761679847001,-500.80808968,0.00018917,2]
[392566783,1761679847010,-501.21751623,0.00018917,2]
[392566784,1761679847020,-500.0,0.00018917,2]
[392566785,1761679847029,-500.0,0.00018917,2]
[392566786,1761679847039,-645.77166234,0.00018917,2]
[392566787,1761679847049,-500.0,0.00018917,2]
[392566788,1761679847059,-500.69189299,0.00018917,2]
[392566789,1761679847070,-500.94829417,0.00018917,2]
[392566790,1761679847080,-500.0,0.00018917,2]
[392566791,1761679847090,-500.0,0.00018917,2]
[392566792,1761679847100,-500.0,0.00018917,2]
[392566793,1761679847110,-500.0,0.00018917,2]
[392566794,1761679847120,-500.0,0.00018917,2]
[392566795,1761679847130,-500.0,0.00018917,2]
[392566796,1761679847139,-500.0,0.00018917,2]
[392566797,1761679847149,-500.0,0.00018917,2]
[392566798,1761679847158,-575.36225419,0.00018917,2]
[392566799,1761679847167,-500.0,0.00018917,2]
[392566800,1761679847177,-500.0,0.00018917,2]
[392566801,1761679847187,-501.8433904,0.00018917,2]
[392566802,1761679847198,-500.0,0.00018917,2]
[392566803,1761679847208,-500.0,0.00018917,2]
[392566804,1761679847219,-500.0,0.00018953,2]
[392566805,1761679847229,-518.94109452,0.00018953,2]
[392566806,1761679847239,-589.40265798,0.00018953,2]
[392566807,1761679847249,-500.0,0.00018953,2]
[392566808,1761679847259,-500.0,0.00018959,2]
[392566809,1761679847271,-500.0,0.00018959,2]
[392566810,1761679847280,-500.0,0.00018959,2]
[392566811,1761679847290,-500.0,0.00018959,2]
[392566812,1761679847300,-503.29818417,0.00018959,2]
[392566813,1761679847311,-500.0,0.00018959,2]
[392566814,1761679847321,-500.0,0.00018959,2]
[392566815,1761679847332,-500.0,0.00018959,2]
[392566816,1761679847343,-201.96,0.00019,2]
[392566817,1761679847353,-10000.0,0.00019,2]
[392566818,1761679847363,-252.02828,0.00019,2]
[392566819,1761679847373,-151.0,0.00019,2]
[392566820,1761679847383,-1000.0,0.00019,2]
[392566821,1761679847393,-185.988555,0.00019,2]
[392566822,1761679847403,-25149.90289167,0.00019,2]
[392566823,1761679847413,-168.661041,0.00019,2]
[392566824,1761679847423,-312.0,0.0001903,2]
[392566825,1761679847433,-190.73882,0.00019034,2]
[392566826,1761679847444,-153.357758,0.00019034,2]
[392566827,1761679847455,-151.0,0.00019078,2]
[392566828,1761679847468,-32739.50366773,0.00019078,2]
[392566829,1761679847480,-303.05757821,0.00019089,2]
[392566830,1761679847490,-151.0,0.000191,2]
[392566831,1761679847500,-233.8,0.00019126,2]
[392566832,1761679847510,-420.0,0.00019132,2]
[392566833,1761679847520,-1000.0,0.00019178,7]
[392566834,1761679847530,-186.981644,0.00019178,2]
[392566835,1761679847541,-151.0,0.00019178,2]
[392566836,1761679847552,-155.856151,0.00019178,2]
[392566837,1761679847562,-151.0,0.00019178,2]
[392566838,1761679847572,-151.0,0.00019178,2]
[392566839,1761679847582,-151.0,0.00019178,2]
[392566840,1761679847592,-151.0,0.00019178,2]
[392566841,1761679847601,-157.842341,0.00019178,2]
[392566842,1761679847612,-151.0,0.00019178,2]
[392566843,1761679847621,-151.0,0.00019178,2]
[392566844,1761679847631,-151.0,0.00019178,2]
[392566845,1761679847640,-151.0,0.00019178,2]
[392566846,1761679847650,-151.0,0.00019178,2]
[392566847,1761679847660,-151.0,0.00019178,2]
[392566848,1761679847670,-151.0,0.00019178,2]
[392566849,1761679847679,-195.238872,0.00019178,2]
[392566850,1761679847688,-153.006273,0.00019178,2]
[392566851,1761679847698,-182.036568,0.00019178,2]
[392566852,1761679847707,-155.227106,0.00019178,2]
[392566853,1761679847720,-151.0,0.00019178,2]
[392566854,1761679847730,-151.0,0.00019178,2]
[392566855,1761679847740,-151.0,0.00019178,2]
[392566856,1761679847749,-151.0,0.00019178,2]
[392566857,1761679847758,-151.0,0.00019178,2]
[392566858,1761679847768,-151.0,0.00019178,2]
[392566859,1761679847777,-151.0,0.00019178,2]
[392566860,1761679847786,-151.0,0.00019178,2]
[392566861,1761679847796,-151.0,0.00019178,2]
[392566862,1761679847805,-170.155852,0.00019178,2]
[392566863,1761679847814,-151.0,0.00019178,2]
[392566864,1761679847823,-151.0,0.00019178,2]
[392566865,1761679847832,-151.0,0.00019178,2]
[392566866,1761679847842,-151.0,0.00019178,2]
[392566867,1761679847851,-186.984564,0.00019178,2]
[392566868,1761679847861,-151.0,0.00019178,2]
[392566869,1761679847870,-151.0,0.00019178,2]
[392566870,1761679847880,-151.0,0.00019178,2]
[392566871,1761679847889,-151.0,0.00019178,2]
[392566872,1761679847899,-151.0,0.00019178,2]
[392566873,1761679847908,-164.5478,0.00019178,2]
[392566874,1761679847918,-151.0,0.00019178,2]
[392566875,1761679847929,-151.0,0.00019178,2]
[392566876,1761679847939,-153.132289,0.00019178,2]
[392566877,1761679847949,-151.0,0.00019178,2]
[392566878,1761679847959,-151.0,0.00019178,2]
[392566879,1761679847971,-151.0,0.00019178,2]
[392566880,1761679847981,-151.0,0.00019178,2]
[392566881,1761679847992,-151.0,0.00019178,2]
[392566882,1761679848001,-151.0,0.00019178,2]
[392566883,1761679848012,-151.0,0.00019178,2]
[392566884,1761679848022,-151.0,0.00019178,2]
[392566885,1761679848033,-192.225982,0.00019178,2]
[392566886,1761679848046,-151.0,0.00019178,2]
[392566887,1761679848057,-155.838038,0.00019178,2]
[392566888,1761679848067,-351.346254,0.00019178,2]
[392566889,1761679848076,-351.346254,0.00019178,2]
[392566890,1761679848087,-351.346254,0.00019178,2]
[392566891,1761679848096,-351.346254,0.00019178,2]
[392566892,1761679848106,-351.346254,0.00019178,2]
[392566893,1761679848117,-351.346254,0.00019178,2]
[392566894,1761679848128,-351.346254,0.00019178,2]
[392566895,1761679848139,-351.346254,0.00019178,2]
[392566896,1761679848149,-351.346254,0.00019178,2]
[392566897,1761679848161,-351.346254,0.00019178,2]
[392566898,1761679848171,-351.346254,0.00019178,2]
[392566899,1761679848182,-351.346254,0.00019178,2]
[392566900,1761679848192,-351.346254,0.00019178,2]
[392566901,1761679848202,-351.346254,0.00019178,2]
[392566902,1761679848211,-351.346254,0.00019178,2]
[392566903,1761679848221,-351.346254,0.00019178,2]
[392566904,1761679848231,-351.346254,0.00019178,2]
[392566905,1761679848240,-351.346254,0.00019178,2]
[392566906,1761679848250,-351.346254,0.00019178,2]